[Event "Early-Titled-Tuesday-Blitz-September-05-2023"]
[Site "Chess.com"]
[Date "2023.09.05"]
[Round "7"]
[White "SpongeBob_03"]
[Black "BigPiano"]
[Result "1-0"]
[WhiteElo "2227"]
[BlackElo "2381"]
[TimeControl "180+1"]
[EndTime "9:17:12 PDT"]
[Termination "SpongeBob_03 won on time"]

1. e4 {[%clk 0:03:00.9]} 1... c6 {[%clk 0:03:00.1]} 2. d4 {[%clk 0:02:59.5]}
2... d5 {[%clk 0:03:01]} 3. Nc3 {[%clk 0:02:59]} 3... dxe4 {[%clk 0:03:01.2]} 4.
Nxe4 {[%clk 0:02:59.9]} 4... Nf6 {[%clk 0:03:01.6]} 5. Nxf6+ {[%clk 0:02:48.9]}
5... exf6 {[%clk 0:03:02.5]} 6. c3 {[%clk 0:02:49.3]} 6... Bd6 {[%clk
0:03:02.6]} 7. Nf3 {[%clk 0:02:48.7]} 7... O-O {[%clk 0:03:02.8]} 8. Be3 {[%clk
0:02:48.8]} 8... Bf5 {[%clk 0:03:01]} 9. Bd3 {[%clk 0:02:48.4]} 9... Bxd3 {[%clk
0:03:00.9]} 10. Qxd3 {[%clk 0:02:49.3]} 10... Nd7 {[%clk 0:02:58.9]} 11. O-O
{[%clk 0:02:48.7]} 11... Qc7 {[%clk 0:02:58.8]} 12. h3 {[%clk 0:02:45.8]} 12...
Rfe8 {[%clk 0:02:58.8]} 13. Nh4 {[%clk 0:02:44.9]} 13... Nf8 {[%clk 0:02:38.2]}
14. Nf5 {[%clk 0:02:43.5]} 14... Ne6 {[%clk 0:02:36.7]} 15. g3 {[%clk
0:02:32.9]} 15... Bf8 {[%clk 0:02:26.9]} 16. Rae1 {[%clk 0:02:26.5]} 16... h5
{[%clk 0:02:19.1]} 17. Bd2 {[%clk 0:02:17.9]} 17... g6 {[%clk 0:02:16.2]} 18.
Nh4 {[%clk 0:02:14.7]} 18... Kg7 {[%clk 0:02:01.5]} 19. g4 {[%clk 0:02:10.7]}
19... hxg4 {[%clk 0:01:51]} 20. hxg4 {[%clk 0:02:11.6]} 20... Bd6 {[%clk
0:01:51.2]} 21. Kg2 {[%clk 0:02:08]} 21... Rh8 {[%clk 0:01:16.1]} 22. Rh1 {[%clk
0:01:40.4]} 22... Nf4+ {[%clk 0:01:01]} 23. Bxf4 {[%clk 0:01:39.4]} 23... Bxf4
{[%clk 0:01:01.9]} 24. Qf3 {[%clk 0:01:28.1]} 24... Bg5 {[%clk 0:00:58]} 25. Qg3
{[%clk 0:01:09.3]} 25... Bf4 {[%clk 0:00:45.1]} 26. Qd3 {[%clk 0:01:00.9]} 26...
Qd7 {[%clk 0:00:28.9]} 27. Qf3 {[%clk 0:00:32.4]} 27... Bg5 {[%clk 0:00:24.9]}
28. Qg3 {[%clk 0:00:32.5]} 28... Qd5+ {[%clk 0:00:19.8]} 29. f3 {[%clk
0:00:28.4]} 29... Rh6 {[%clk 0:00:18.4]} 30. b3 {[%clk 0:00:16.9]} 30... Rah8
{[%clk 0:00:18]} 31. Nf5+ {[%clk 0:00:14.2]} 31... gxf5 {[%clk 0:00:17.6]} 32.
Rxh6 {[%clk 0:00:12]} 32... Rxh6 {[%clk 0:00:16]} 33. gxf5 {[%clk 0:00:12.9]}
33... Qxf5 {[%clk 0:00:15.6]} 34. Re4 {[%clk 0:00:13.6]} 34... Qg6 {[%clk
0:00:11.6]} 35. Rg4 {[%clk 0:00:13.4]} 35... Qc2+ {[%clk 0:00:06.1]} 36. Kg1
{[%clk 0:00:12.7]} 36... Kh7 {[%clk 0:00:04.9]} 37. f4 {[%clk 0:00:11.7]} 37...
Qc1+ {[%clk 0:00:04.4]} 38. Kg2 {[%clk 0:00:11.8]} 38... Qd2+ {[%clk 0:00:04.4]}
39. Kg1 {[%clk 0:00:12]} 39... Qd1+ {[%clk 0:00:04.6]} 40. Kf2 {[%clk
0:00:12.4]} 40... Qd2+ {[%clk 0:00:03.9]} 41. Kg1 {[%clk 0:00:12.8]} 41... Qc1+
{[%clk 0:00:01.8]} 42. Kg2 {[%clk 0:00:12.8]} 42... Qh1+ {[%clk 0:00:01.9]} 43.
Kf2 {[%clk 0:00:13.3]} 43... Rh2+ {[%clk 0:00:02.1]} 44. Ke3 {[%clk 0:00:13.4]}
44... Qc1+ {[%clk 0:00:01.7]} 45. Kd3 {[%clk 0:00:14]} 45... Qd2+ {[%clk
0:00:02]} 46. Kc4 {[%clk 0:00:14.2]} 46... b5+ {[%clk 0:00:02.4]} 47. Kc5 {[%clk
0:00:14]} 47... b4 {[%clk 0:00:01.2]} 48. Kxc6 {[%clk 0:00:14.1]} 48... Qxc3+
{[%clk 0:00:01.2]} 49. Kd7 {[%clk 0:00:13.9]} 49... Qd3 {[%clk 0:00:01.2]} 50.
fxg5 {[%clk 0:00:13.5]} 1-0

[Event "Early-Titled-Tuesday-Blitz-September-05-2023"]
[Site "Chess.com"]
[Date "2023.09.05"]
[Round "7"]
[White "MathiasWomacka"]
[Black "vovachesss"]
[Result "0-1"]
[WhiteElo "2490"]
[BlackElo "2765"]
[TimeControl "180+1"]
[EndTime "9:17:13 PDT"]
[Termination "vovachesss won by resignation"]

1. e4 {[%clk 0:03:00.9]} 1... e5 {[%clk 0:02:59.4]} 2. Nf3 {[%clk 0:03:00]} 2...
d5 {[%clk 0:02:59.3]} 3. exd5 {[%clk 0:02:57.8]} 3... e4 {[%clk 0:03:00.2]} 4.
Qe2 {[%clk 0:02:57.3]} 4... Nf6 {[%clk 0:03:00.4]} 5. d3 {[%clk 0:02:57.5]} 5...
Qxd5 {[%clk 0:03:00.1]} 6. Nfd2 {[%clk 0:02:57.4]} 6... Nc6 {[%clk 0:03:00.2]}
7. dxe4 {[%clk 0:02:56.1]} 7... Qe6 {[%clk 0:03:00.6]} 8. Qc4 {[%clk 0:02:52.2]}
8... Qd7 {[%clk 0:03:00.1]} 9. Be2 {[%clk 0:02:43.9]} 9... Bd6 {[%clk
0:02:59.9]} 10. O-O {[%clk 0:02:32.9]} 10... O-O {[%clk 0:02:58.3]} 11. Nc3
{[%clk 0:02:17.6]} 11... Re8 {[%clk 0:02:55.3]} 12. Nd5 {[%clk 0:02:11.1]} 12...
Nxd5 {[%clk 0:01:42.9]} 13. Qxd5 {[%clk 0:02:12]} 13... Re5 {[%clk 0:01:41.5]}
14. Qd3 {[%clk 0:02:05.9]} 14... Qe7 {[%clk 0:01:41.4]} 15. c3 {[%clk
0:01:57.3]} 15... Bc5 {[%clk 0:01:30.8]} 16. b4 {[%clk 0:01:38.6]} 16... Bb6
{[%clk 0:01:30.9]} 17. Bf3 {[%clk 0:01:32.2]} 17... Be6 {[%clk 0:01:26]} 18. Nc4
{[%clk 0:01:31.9]} 18... Rd8 {[%clk 0:01:20.3]} 19. Qe2 {[%clk 0:01:31.8]} 19...
h5 {[%clk 0:00:55.9]} 20. Bxh5 {[%clk 0:01:21.5]} 20... Bxc4 {[%clk 0:00:54.5]}
21. Qxc4 {[%clk 0:01:21.4]} 21... Rxh5 {[%clk 0:00:54.6]} 22. Bf4 {[%clk
0:01:15.5]} 22... Ne5 {[%clk 0:00:49.3]} 23. Qe2 {[%clk 0:01:12.9]} 23... Rh4
{[%clk 0:00:42.3]} 24. Bg3 {[%clk 0:01:11.8]} 24... Rh6 {[%clk 0:00:39.3]} 25.
Rad1 {[%clk 0:01:07]} 25... Re8 {[%clk 0:00:39.3]} 26. Rd5 {[%clk 0:01:02.5]}
26... Re6 {[%clk 0:00:36.8]} 27. Qh5 {[%clk 0:00:53.1]} 27... c6 {[%clk
0:00:34.4]} 28. Rdd1 {[%clk 0:00:48]} 28... Ng6 {[%clk 0:00:31]} 29. Rd3 {[%clk
0:00:39.8]} 29... Rxe4 {[%clk 0:00:30.6]} 30. Bd6 {[%clk 0:00:39.6]} 30... Qf6
{[%clk 0:00:24.8]} 31. g3 {[%clk 0:00:36.1]} 31... Re1 {[%clk 0:00:19.1]} 32.
Bc5 {[%clk 0:00:28.6]} 32... Bxc5 {[%clk 0:00:17]} 33. Qxc5 {[%clk 0:00:27.3]}
33... Rxf1+ {[%clk 0:00:13.9]} 34. Kxf1 {[%clk 0:00:28.2]} 34... Qe6 {[%clk
0:00:11]} 35. Re3 {[%clk 0:00:24.2]} 35... Qh3+ {[%clk 0:00:11.3]} 36. Kg1
{[%clk 0:00:22]} 36... Rd8 {[%clk 0:00:10.3]} 37. Re1 {[%clk 0:00:20.8]} 37...
Qg4 {[%clk 0:00:09.1]} 38. Qxa7 {[%clk 0:00:20]} 38... Nh4 {[%clk 0:00:09.1]}
39. Qb6 {[%clk 0:00:18.2]} 39... Rd6 {[%clk 0:00:04.8]} 40. Rf1 {[%clk
0:00:15.3]} 40... Rg6 {[%clk 0:00:04.1]} 41. Qe3 {[%clk 0:00:13.6]} 41... Kh7
{[%clk 0:00:03.7]} 42. Re1 {[%clk 0:00:12.4]} 42... Nf3+ {[%clk 0:00:04.1]} 43.
Kg2 {[%clk 0:00:12.1]} 43... Nxe1+ {[%clk 0:00:05]} 44. Qxe1 {[%clk 0:00:11.4]}
44... Re6 {[%clk 0:00:05.7]} 45. Qd2 {[%clk 0:00:11]} 45... Qe4+ {[%clk
0:00:06.2]} 46. Kh3 {[%clk 0:00:10]} 46... Rh6+ {[%clk 0:00:06.2]} 47. Qxh6+
{[%clk 0:00:08.4]} 47... gxh6 {[%clk 0:00:07.1]} 0-1

[Event "Early-Titled-Tuesday-Blitz-September-05-2023"]
[Site "Chess.com"]
[Date "2023.09.05"]
[Round "7"]
[White "fen_fire"]
[Black "karinachess1"]
[Result "1-0"]
[WhiteElo "2486"]
[BlackElo "2576"]
[TimeControl "180+1"]
[EndTime "9:17:13 PDT"]
[Termination "fen_fire won on time"]

1. b3 {[%clk 0:03:00.9]} 1... e5 {[%clk 0:02:59.9]} 2. Bb2 {[%clk 0:03:01.8]}
2... Nc6 {[%clk 0:03:00.4]} 3. e3 {[%clk 0:03:02.1]} 3... g6 {[%clk 0:03:00.6]}
4. Nf3 {[%clk 0:03:02.6]} 4... Bg7 {[%clk 0:03:00.9]} 5. d4 {[%clk 0:03:03.2]}
5... d6 {[%clk 0:03:01.1]} 6. dxe5 {[%clk 0:03:03.1]} 6... Nge7 {[%clk
0:02:59.5]} 7. Nc3 {[%clk 0:03:01]} 7... Nxe5 {[%clk 0:02:47.5]} 8. Nxe5 {[%clk
0:03:00.9]} 8... Bxe5 {[%clk 0:02:48.4]} 9. Qd2 {[%clk 0:03:01.3]} 9... O-O
{[%clk 0:02:46.9]} 10. O-O-O {[%clk 0:03:01.9]} 10... Nc6 {[%clk 0:02:42.3]} 11.
h4 {[%clk 0:03:01.8]} 11... h5 {[%clk 0:02:21.8]} 12. Bc4 {[%clk 0:02:59.6]}
12... Nb4 {[%clk 0:02:00.3]} 13. a3 {[%clk 0:02:47.4]} 13... Bxc3 {[%clk
0:01:45.4]} 14. Bxc3 {[%clk 0:02:48.3]} 14... Na2+ {[%clk 0:01:45.7]} 15. Kb2
{[%clk 0:02:49]} 15... Nxc3 {[%clk 0:01:46.2]} 16. Qxc3 {[%clk 0:02:49.9]} 16...
Qe7 {[%clk 0:01:46.2]} 17. Rd2 {[%clk 0:02:36.1]} 17... c6 {[%clk 0:01:22.7]}
18. Qb4 {[%clk 0:02:14.7]} 18... b5 {[%clk 0:01:15.4]} 19. Be2 {[%clk
0:01:55.8]} 19... Rd8 {[%clk 0:01:00.4]} 20. Qf4 {[%clk 0:01:49.2]} 20... Bf5
{[%clk 0:00:51.6]} 21. f3 {[%clk 0:01:45]} 21... Qe5+ {[%clk 0:00:42.3]} 22.
Qxe5 {[%clk 0:01:44.5]} 22... dxe5 {[%clk 0:00:43.2]} 23. Rhd1 {[%clk
0:01:43.5]} 23... Rxd2 {[%clk 0:00:42.9]} 24. Rxd2 {[%clk 0:01:44.4]} 24... Kf8
{[%clk 0:00:42.1]} 25. g4 {[%clk 0:01:34.3]} 25... hxg4 {[%clk 0:00:34.1]} 26.
fxg4 {[%clk 0:01:35.2]} 26... Be4 {[%clk 0:00:33.8]} 27. h5 {[%clk 0:01:35.8]}
27... gxh5 {[%clk 0:00:23.1]} 28. gxh5 {[%clk 0:01:36.7]} 28... Ke7 {[%clk
0:00:23.7]} 29. c4 {[%clk 0:01:23.8]} 29... a6 {[%clk 0:00:20.6]} 30. Bf1 {[%clk
0:01:19.5]} 30... Rh8 {[%clk 0:00:19.3]} 31. Rh2 {[%clk 0:01:20]} 31... f5
{[%clk 0:00:17.5]} 32. Be2 {[%clk 0:01:18.1]} 32... Kf6 {[%clk 0:00:16.5]} 33.
Kc3 {[%clk 0:01:17.8]} 33... Kg5 {[%clk 0:00:13.3]} 34. Kb4 {[%clk 0:01:15.8]}
34... Rd8 {[%clk 0:00:11.4]} 35. Ka5 {[%clk 0:01:02.7]} 35... f4 {[%clk
0:00:11.4]} 36. exf4+ {[%clk 0:01:00.9]} 36... exf4 {[%clk 0:00:12.3]} 37. Kxa6
{[%clk 0:00:48.2]} 37... Ra8+ {[%clk 0:00:09.5]} 38. Kb6 {[%clk 0:00:45.7]}
38... Rxa3 {[%clk 0:00:09.1]} 39. b4 {[%clk 0:00:38.9]} 39... f3 {[%clk
0:00:08.1]} 40. Bd1 {[%clk 0:00:19]} 40... bxc4 {[%clk 0:00:06.2]} 41. h6 {[%clk
0:00:16.5]} 41... Re3 {[%clk 0:00:02.8]} 42. h7 {[%clk 0:00:11.7]} 42... Bxh7
{[%clk 0:00:02.8]} 43. Bxf3 {[%clk 0:00:09.7]} 43... Rxf3 {[%clk 0:00:01.8]} 44.
Rxh7 {[%clk 0:00:09.7]} 44... c3 {[%clk 0:00:02.4]} 45. Rc7 {[%clk 0:00:09]}
45... Rf6 {[%clk 0:00:01.6]} 46. Re7 {[%clk 0:00:08]} 46... c2 {[%clk
0:00:01.3]} 47. Re1 {[%clk 0:00:07.5]} 1-0

[Event "Early-Titled-Tuesday-Blitz-September-05-2023"]
[Site "Chess.com"]
[Date "2023.09.05"]
[Round "7"]
[White "viktorgen2021"]
[Black "Goryachkina"]
[Result "1/2-1/2"]
[WhiteElo "2488"]
[BlackElo "2664"]
[TimeControl "180+1"]
[EndTime "9:17:14 PDT"]
[Termination "Game drawn by agreement"]

1. d4 {[%clk 0:02:53.7]} 1... Nf6 {[%clk 0:02:59.2]} 2. Nf3 {[%clk 0:02:52.1]}
2... d5 {[%clk 0:02:57.7]} 3. c4 {[%clk 0:02:51.4]} 3... e6 {[%clk 0:02:57]} 4.
g3 {[%clk 0:02:51.7]} 4... Bb4+ {[%clk 0:02:55.2]} 5. Bd2 {[%clk 0:02:50.2]}
5... a5 {[%clk 0:02:54]} 6. Bg2 {[%clk 0:02:48.7]} 6... O-O {[%clk 0:02:53.6]}
7. O-O {[%clk 0:02:49]} 7... dxc4 {[%clk 0:02:53.3]} 8. Qc2 {[%clk 0:02:48.6]}
8... Bxd2 {[%clk 0:02:46]} 9. Nbxd2 {[%clk 0:02:46.9]} 9... b5 {[%clk
0:02:45.9]} 10. Ne4 {[%clk 0:02:45.9]} 10... Nbd7 {[%clk 0:02:22.9]} 11. Ne5
{[%clk 0:02:21.8]} 11... Ra6 {[%clk 0:02:04.8]} 12. Nxd7 {[%clk 0:01:43.2]}
12... Bxd7 {[%clk 0:01:59.7]} 13. Nc5 {[%clk 0:01:39.9]} 13... Rb6 {[%clk
0:01:58.2]} 14. b3 {[%clk 0:01:36.2]} 14... Bc6 {[%clk 0:01:41.5]} 15. Rfd1
{[%clk 0:01:24.8]} 15... Bxg2 {[%clk 0:01:36.9]} 16. Kxg2 {[%clk 0:01:25.7]}
16... Qa8+ {[%clk 0:01:23.3]} 17. Kg1 {[%clk 0:01:24.3]} 17... cxb3 {[%clk
0:01:13.6]} 18. axb3 {[%clk 0:01:22.9]} 18... h6 {[%clk 0:01:03.8]} 19. e4
{[%clk 0:01:20.4]} 19... Rd8 {[%clk 0:01:00]} 20. h3 {[%clk 0:01:18.6]} 20...
Rbb8 {[%clk 0:00:42.1]} 21. g4 {[%clk 0:01:16.1]} 21... Nd7 {[%clk 0:00:28.9]}
22. d5 {[%clk 0:00:35]} 22... Nxc5 {[%clk 0:00:26.4]} 23. Qxc5 {[%clk
0:00:35.9]} 23... exd5 {[%clk 0:00:26.6]} 24. exd5 {[%clk 0:00:36.2]} 24... Rd7
{[%clk 0:00:25]} 25. Rd2 {[%clk 0:00:27.2]} 25... Qa6 {[%clk 0:00:25]} 26. Re1
{[%clk 0:00:24.6]} 26... Rbd8 {[%clk 0:00:23.9]} 27. Re5 {[%clk 0:00:23.4]}
27... Qb6 {[%clk 0:00:22.7]} 28. Qc3 {[%clk 0:00:22.2]} 28... a4 {[%clk
0:00:20.7]} 29. bxa4 {[%clk 0:00:20.5]} 29... bxa4 {[%clk 0:00:21.1]} 30. Qa3
{[%clk 0:00:21.2]} 30... Qb1+ {[%clk 0:00:16.5]} 31. Kg2 {[%clk 0:00:20.5]}
31... Qb5 {[%clk 0:00:16.5]} 32. Qf3 {[%clk 0:00:17.9]} 32... a3 {[%clk
0:00:15.3]} 33. Qxa3 {[%clk 0:00:17.5]} 33... c6 {[%clk 0:00:08.2]} 34. Re7
{[%clk 0:00:07]} 34... Rxe7 {[%clk 0:00:07.2]} 35. Qxe7 {[%clk 0:00:07.2]} 35...
Rxd5 {[%clk 0:00:07]} 36. Qe8+ {[%clk 0:00:06.8]} 36... Kh7 {[%clk 0:00:07.3]}
37. Qe4+ {[%clk 0:00:07.2]} 37... g6 {[%clk 0:00:07.2]} 38. Qe7 {[%clk
0:00:07.3]} 38... Kg7 {[%clk 0:00:04.7]} 39. Re2 {[%clk 0:00:05.8]} 39... Qc5
{[%clk 0:00:04.5]} 40. Qe4 {[%clk 0:00:05.5]} 40... Qd4 {[%clk 0:00:04.3]} 41.
Qf3 {[%clk 0:00:05.5]} 41... Rd7 {[%clk 0:00:04.2]} 42. Qxc6 {[%clk 0:00:04.9]}
42... Qd5+ {[%clk 0:00:04.5]} 43. Qxd5 {[%clk 0:00:05.2]} 43... Rxd5 {[%clk
0:00:05.4]} 44. Kg3 {[%clk 0:00:05.8]} 44... h5 {[%clk 0:00:05.6]} 1/2-1/2

[Event "Early-Titled-Tuesday-Blitz-September-05-2023"]
[Site "Chess.com"]
[Date "2023.09.05"]
[Round "7"]
[White "Shuvalov"]
[Black "KNVB"]
[Result "0-1"]
[WhiteElo "2491"]
[BlackElo "2775"]
[TimeControl "180+1"]
[EndTime "9:17:15 PDT"]
[Termination "KNVB won by resignation"]

1. d4 {[%clk 0:03:00.9]} 1... e5 {[%clk 0:02:59.7]} 2. e3 {[%clk 0:02:54.1]}
2... Nc6 {[%clk 0:02:58.3]} 3. Nf3 {[%clk 0:02:50.7]} 3... d6 {[%clk 0:02:56.7]}
4. c4 {[%clk 0:02:48.2]} 4... g6 {[%clk 0:02:47.6]} 5. Nc3 {[%clk 0:02:46.8]}
5... Bg7 {[%clk 0:02:47.3]} 6. d5 {[%clk 0:02:46.9]} 6... Nb8 {[%clk 0:02:47.3]}
7. e4 {[%clk 0:02:47.1]} 7... a5 {[%clk 0:02:38.6]} 8. h3 {[%clk 0:02:39.7]}
8... Na6 {[%clk 0:02:37.4]} 9. Be3 {[%clk 0:02:37.8]} 9... Ne7 {[%clk
0:02:29.7]} 10. g4 {[%clk 0:02:35.2]} 10... f5 {[%clk 0:01:53.1]} 11. gxf5
{[%clk 0:02:33.5]} 11... gxf5 {[%clk 0:01:54]} 12. Rg1 {[%clk 0:02:31.9]} 12...
Bf6 {[%clk 0:01:54.4]} 13. Bg5 {[%clk 0:02:13]} 13... Ng6 {[%clk 0:01:50.2]} 14.
h4 {[%clk 0:02:09.7]} 14... Nc5 {[%clk 0:01:33.4]} 15. Nd2 {[%clk 0:01:56.2]}
15... Bxg5 {[%clk 0:01:11.1]} 16. Rxg5 {[%clk 0:01:51.3]} 16... Nf4 {[%clk
0:00:44.9]} 17. Qf3 {[%clk 0:01:24.2]} 17... h6 {[%clk 0:00:38.7]} 18. Rg7
{[%clk 0:01:23.7]} 18... Kf8 {[%clk 0:00:11.9]} 19. Rg1 {[%clk 0:01:12]} 19...
Qxh4 {[%clk 0:00:09.5]} 20. O-O-O {[%clk 0:01:11]} 20... Qf6 {[%clk 0:00:03.4]}
21. Nb3 {[%clk 0:01:05.6]} 21... Nxb3+ {[%clk 0:00:02.5]} 22. axb3 {[%clk
0:01:06.5]} 22... Bd7 {[%clk 0:00:02.1]} 23. exf5 {[%clk 0:01:02.1]} 23... Bxf5
{[%clk 0:00:02.5]} 24. Ne4 {[%clk 0:01:01.5]} 24... Bxe4 {[%clk 0:00:01.9]} 25.
Qxe4 {[%clk 0:01:01.5]} 25... Kf7 {[%clk 0:00:02.1]} 26. c5 {[%clk 0:00:54.3]}
26... Rag8 {[%clk 0:00:02.1]} 27. Bc4 {[%clk 0:00:53.1]} 27... Rxg1 {[%clk
0:00:01.9]} 28. Rxg1 {[%clk 0:00:53.6]} 28... Rg8 {[%clk 0:00:02.6]} 29. Qh7+
{[%clk 0:00:47.7]} 29... Rg7 {[%clk 0:00:02.5]} 30. Rxg7+ {[%clk 0:00:44.9]}
30... Qxg7 {[%clk 0:00:03.4]} 31. Qf5+ {[%clk 0:00:45]} 31... Qf6 {[%clk
0:00:04.1]} 32. Qd7+ {[%clk 0:00:44.7]} 32... Qe7 {[%clk 0:00:04.7]} 33. Qf5+
{[%clk 0:00:44.5]} 33... Kg7 {[%clk 0:00:05.2]} 34. Qc8 {[%clk 0:00:40.4]} 34...
dxc5 {[%clk 0:00:02.1]} 35. Qxb7 {[%clk 0:00:39.8]} 35... h5 {[%clk 0:00:02.3]}
36. Qb8 {[%clk 0:00:32.8]} 36... h4 {[%clk 0:00:01.6]} 37. d6 {[%clk 0:00:33]}
37... Qxd6 {[%clk 0:00:01.6]} 38. Qg8+ {[%clk 0:00:32.4]} 38... Kh6 {[%clk
0:00:01.8]} 39. Qg4 {[%clk 0:00:27.7]} 39... Qf6 {[%clk 0:00:01.4]} 40. Kb1
{[%clk 0:00:23.4]} 40... h3 {[%clk 0:00:01.9]} 41. Ka2 {[%clk 0:00:22.5]} 41...
h2 {[%clk 0:00:01.6]} 42. Qf3 {[%clk 0:00:21.5]} 42... Qh4 {[%clk 0:00:02.1]}
43. Qh1 {[%clk 0:00:20.4]} 43... Qh3 {[%clk 0:00:01.7]} 44. Qc6+ {[%clk
0:00:20.2]} 44... Kg5 {[%clk 0:00:01.8]} 45. Bd5 {[%clk 0:00:15.8]} 45... Nxd5
{[%clk 0:00:01.8]} 46. Qxd5 {[%clk 0:00:16.7]} 46... h1=Q {[%clk 0:00:02.1]} 47.
Qxe5+ {[%clk 0:00:17]} 47... Qf5 {[%clk 0:00:02.4]} 48. Qg3+ {[%clk 0:00:17]}
48... Kf6 {[%clk 0:00:02.3]} 49. Qc3+ {[%clk 0:00:16.2]} 49... Kf7 {[%clk
0:00:02.2]} 50. Qc4+ {[%clk 0:00:15.9]} 50... Qhd5 {[%clk 0:00:02.9]} 51. Qa6
{[%clk 0:00:15.3]} 51... Qfe6 {[%clk 0:00:03.2]} 52. Qb5 {[%clk 0:00:14.8]}
52... c4 {[%clk 0:00:02.6]} 53. f4 {[%clk 0:00:12.8]} 53... Qxb5 {[%clk
0:00:02.2]} 0-1

[Event "Early-Titled-Tuesday-Blitz-September-05-2023"]
[Site "Chess.com"]
[Date "2023.09.05"]
[Round "7"]
[White "Good_Knight_Kiss"]
[Black "Speshka"]
[Result "0-1"]
[WhiteElo "2344"]
[BlackElo "2523"]
[TimeControl "180+1"]
[EndTime "9:17:16 PDT"]
[Termination "Speshka won on time"]

1. e4 {[%clk 0:03:00.9]} 1... c5 {[%clk 0:02:59.8]} 2. Nf3 {[%clk 0:02:59.6]}
2... a6 {[%clk 0:02:59.9]} 3. c4 {[%clk 0:02:58.7]} 3... Nc6 {[%clk 0:02:59.4]}
4. d4 {[%clk 0:02:58.3]} 4... cxd4 {[%clk 0:03:00.3]} 5. Nxd4 {[%clk 0:02:57.9]}
5... e5 {[%clk 0:03:00.9]} 6. Nc2 {[%clk 0:02:57.7]} 6... Nf6 {[%clk 0:03:00.7]}
7. Nc3 {[%clk 0:02:57.8]} 7... d6 {[%clk 0:02:59.9]} 8. Be2 {[%clk 0:02:57.7]}
8... h6 {[%clk 0:02:59.4]} 9. O-O {[%clk 0:02:57.8]} 9... Be7 {[%clk 0:03:00]}
10. Be3 {[%clk 0:02:55.7]} 10... O-O {[%clk 0:02:59.3]} 11. f3 {[%clk
0:02:54.4]} 11... Rb8 {[%clk 0:02:53.6]} 12. Qd2 {[%clk 0:02:52.6]} 12... Be6
{[%clk 0:02:50]} 13. Rfd1 {[%clk 0:02:43.5]} 13... Nd7 {[%clk 0:02:46.6]} 14.
Nd5 {[%clk 0:02:37.5]} 14... b5 {[%clk 0:02:41]} 15. cxb5 {[%clk 0:02:32]} 15...
axb5 {[%clk 0:02:39.2]} 16. Nxe7+ {[%clk 0:02:31.4]} 16... Nxe7 {[%clk
0:02:29.5]} 17. Qxd6 {[%clk 0:02:31.7]} 17... Nc8 {[%clk 0:02:29.3]} 18. Qd2
{[%clk 0:02:15.4]} 18... Qc7 {[%clk 0:02:24.1]} 19. Nb4 {[%clk 0:02:10.8]} 19...
Qb7 {[%clk 0:02:20.1]} 20. b3 {[%clk 0:02:01.8]} 20... Ne7 {[%clk 0:01:58.5]}
21. Rac1 {[%clk 0:01:57.7]} 21... Rfd8 {[%clk 0:01:55.7]} 22. Qd6 {[%clk
0:01:46.8]} 22... Nf6 {[%clk 0:01:39.9]} 23. Qxe5 {[%clk 0:01:39.5]} 23... Rxd1+
{[%clk 0:01:39.8]} 24. Rxd1 {[%clk 0:01:34.7]} 24... Ra8 {[%clk 0:01:13]} 25.
Qd6 {[%clk 0:01:08.9]} 25... Nc8 {[%clk 0:00:46]} 26. Qd8+ {[%clk 0:00:56.4]}
26... Kh7 {[%clk 0:00:45.4]} 27. Qd3 {[%clk 0:00:56.4]} 27... Kg8 {[%clk
0:00:41]} 28. Qxb5 {[%clk 0:00:49.7]} 28... Qxb5 {[%clk 0:00:35.7]} 29. Bxb5
{[%clk 0:00:50.6]} 29... Rb8 {[%clk 0:00:36.1]} 30. a4 {[%clk 0:00:48.8]} 30...
Bxb3 {[%clk 0:00:28]} 31. Rd8+ {[%clk 0:00:45.7]} 31... Kh7 {[%clk 0:00:28.2]}
32. Nc6 {[%clk 0:00:39]} 32... Ra8 {[%clk 0:00:27]} 33. Ne7 {[%clk 0:00:35]}
33... Be6 {[%clk 0:00:21.5]} 34. Nxc8 {[%clk 0:00:24.8]} 34... Bxc8 {[%clk
0:00:20.5]} 35. Bd4 {[%clk 0:00:16.6]} 35... Kg6 {[%clk 0:00:19.9]} 36. Kf2
{[%clk 0:00:14.6]} 36... h5 {[%clk 0:00:14.6]} 37. Ke3 {[%clk 0:00:14.1]} 37...
h4 {[%clk 0:00:14.5]} 38. Kd3 {[%clk 0:00:10]} 38... h3 {[%clk 0:00:13.1]} 39.
g3 {[%clk 0:00:09.4]} 39... Nh5 {[%clk 0:00:11.3]} 40. Ke3 {[%clk 0:00:06.8]}
40... Nxg3 {[%clk 0:00:10.7]} 41. Kf2 {[%clk 0:00:04.5]} 41... Nh5 {[%clk
0:00:10.3]} 42. Be3 {[%clk 0:00:03.1]} 42... Nf6 {[%clk 0:00:09.4]} 43. Bd4
{[%clk 0:00:03.2]} 43... Nh5 {[%clk 0:00:09.2]} 44. Bc6 {[%clk 0:00:02.3]} 44...
Rb8 {[%clk 0:00:07.8]} 45. Be5 {[%clk 0:00:01.5]} 45... Rb4 {[%clk 0:00:06.9]}
46. Rxc8 {[%clk 0:00:01]} 46... Rc4 {[%clk 0:00:07.1]} 0-1